bitfinex-derivatives/quotes_BNBF0:USTF0_20250305
["timestamp","ask_amount","ask_price","bid_price","bid_amount"]
[1741134449311,0.34278858,583.45,582.35,0.34343607]
[1741134450911,1.235,583.72,582.35,0.34343607]
[1741134451114,0.31511408,583.71,582.35,0.34343607]
[1741134451315,0.31511408,583.71,582.47,1.28338366]
[1741134451615,0.31511408,583.71,582.48,0.34335942]
[1741134453620,0.34263589,583.71,582.48,0.34335942]
[1741134453815,0.31514078,583.7,582.48,0.34335942]
[1741134454418,0.31514078,583.7,582.6,1.28338366]
[1741134455414,0.65778254,583.7,582.6,1.28338366]
[1741134455613,0.65778841,583.69,582.6,1.28338366]
[1741134455815,0.65779428,583.68,582.6,1.28338366]
[1741134456011,3.21030424,584.14,582.6,1.28338366]
[1741134456012,0.65780015,583.67,582.6,1.28338366]
[1741134456217,0.65780603,583.66,582.6,1.28338366]
[1741134456617,0.31514078,583.65,582.6,1.28338366]
[1741134457618,0.34266525,583.66,582.6,1.28338366]
[1741134457821,0.31513549,583.65,582.6,1.28338366]
[1741134458217,0.31513549,583.65,582.63,1.28338366]
[1741134458419,1.249,583.64,582.63,1.28338366]
[1741134458627,0.31513549,583.63,582.63,1.28338366]
[1741134459327,0.31512597,583.62,582.63,1.28338366]
[1741134459522,1.249,583.64,582.63,1.28338366]
[1741134459718,0.31511995,583.63,582.63,1.28338366]
[1741134460324,1.249,583.64,582.63,1.28338366]
[1741134460524,1.249,583.64,582.59,1.28338366]
[1741134460525,0.31510764,583.63,582.59,1.28338366]
[1741134460927,1.249,583.64,582.6,0.3432887]
[1741134461123,0.31511053,583.63,582.6,0.3432887]
[1741134461322,1.249,583.64,582.6,0.3432887]
[1741134462027,1.249,583.64,582.73,1.28338366]
[1741134464031,1.011,583.63,582.73,1.28338366]
[1741134464832,1.011,583.63,582.8,1.28338366]
[1741134466739,1.011,583.63,582.68,1.28338366]
[1741134469040,1.011,583.63,582.75,1.28338366]
[1741134471741,1.011,583.63,582.72,1.28338366]
[1741134474542,1.011,583.63,582.71,1.28338366]
[1741134477450,0.31512816,583.62,582.77,1.28338366]
[1741134477751,0.31514982,583.61,582.77,1.28338366]
[1741134477948,0.31514982,583.6,582.77,1.28338366]
[1741134478142,0.31514982,583.59,582.77,1.28338366]
[1741134478347,1.011,583.63,582.77,1.28338366]
[1741134478543,0.3151371,583.62,582.77,1.28338366]
[1741134478747,1.011,583.63,582.77,1.28338366]
[1741134479955,1.011,583.63,582.61,1.28338366]
[1741134481556,0.31511936,583.62,582.61,1.28338366]
[1741134482560,0.31511936,583.62,582.78,1.28338366]
[1741134484760,1.224,583.61,582.68,1.28338366]
[1741134485059,0.31511936,583.6,582.68,1.28338366]
[1741134487361,0.31511936,583.6,582.71,1.28338366]
[1741134488355,1.224,583.61,582.71,1.28338366]
[1741134488661,0.31513987,583.6,582.71,1.28338366]
[1741134488862,1.224,583.61,582.71,1.28338366]
[1741134489062,0.31513375,583.6,582.71,1.28338366]
[1741134489256,1.224,583.61,582.71,1.28338366]
[1741134489458,0.31514112,583.6,582.72,1.28338366]
[1741134489661,1.224,583.61,582.72,1.28338366]
[1741134491557,1.224,583.61,582.63,1.28338366]
[1741134493560,1.224,583.61,582.61,1.28338366]
[1741134496662,1.224,583.61,582.76,1.28338366]
[1741134497671,1.011,583.63,582.76,1.28338366]
[1741134499968,1.011,583.63,582.73,1.28338366]
[1741134500874,0.882,583.62,582.73,1.28338366]
[1741134502776,0.882,583.62,582.74,1.28338366]
[1741134505771,0.882,583.62,582.81,1.28338366]
[1741134508373,0.882,583.62,582.6,1.62667236]
[1741134511076,0.882,583.62,582.84,1.28338366]
[1741134513386,0.882,583.62,582.99,1.28338366]
[1741134515489,0.882,583.62,582.97,1.28338366]
[1741134517691,0.882,583.62,582.99,1.28338366]
[1741134519392,1.11,583.61,582.99,1.28338366]
[1741134519792,1.11,583.61,582.96,1.28338366]
[1741134522192,1.11,583.61,582.63,1.28338366]
[1741134522594,1.11,583.61,582.64,0.34326513]
[1741134523895,1.11,583.61,583.01,1.28338366]
[1741134524096,0.9,583.6,583.01,1.28338366]
[1741134525598,0.9,583.6,583.0,1.28338366]
[1741134527602,0.9,583.6,583.04,1.28338366]
[1741134529605,0.9,583.6,582.92,1.28338366]
[1741134532103,0.9,583.6,582.93,0.34309436]
[1741134533012,0.9,583.6,583.04,1.28338366]
[1741134535111,0.9,583.6,583.18,1.28338366]
[1741134536409,0.9,583.6,583.1,1.28338366]
[1741134536714,0.9,583.6,582.98,1.28338366]
[1741134537015,0.9,583.6,582.99,0.34305905]
[1741134541513,0.9,583.6,583.1,1.28338366]
[1741134543817,0.9,583.6,583.14,1.28338366]
[1741134546118,0.9,583.6,583.04,1.28338366]
[1741134548319,0.9,583.6,583.06,1.28338366]
[1741134550013,0.9,583.6,583.07,1.28338366]
[1741134551121,1.11,583.61,583.07,1.28338366]
[1741134552224,1.11,583.61,582.99,0.34305905]
[1741134552225,1.11,583.61,583.02,1.28338366]
[1741134552419,2.42051257,584.5,583.02,1.28338366]
[1741134552624,0.3421845,584.48,583.02,1.28338366]
[1741134552821,0.31490075,584.47,583.02,1.28338366]
[1741134553017,0.34220207,584.45,583.02,1.28338366]
[1741134553221,0.31490075,584.44,583.02,1.28338366]
[1741134553424,0.34220207,584.45,583.02,1.28338366]
[1741134553425,0.31490075,584.43,583.02,1.28338366]
[1741134553626,0.31490075,584.42,583.02,1.28338366]
[1741134553922,0.34223134,584.4,583.07,1.28338366]
[1741134554224,0.31490075,584.39,583.07,1.28338366]
[1741134554421,0.31490075,584.38,583.07,1.28338366]
[1741134554817,0.34225477,584.36,583.07,1.28338366]
[1741134555029,0.31490075,584.35,583.07,1.28338366]
[1741134555222,0.34227234,584.33,583.07,1.28338366]
[1741134555423,0.31490075,584.32,583.07,1.28338366]
[1741134555626,0.34228991,584.3,583.07,1.28338366]
[1741134555827,0.31490075,584.29,583.07,1.28338366]
[1741134556128,0.34230749,584.27,583.16,1.28338366]
[1741134556426,0.31490075,584.26,583.16,1.28338366]
[1741134556728,0.34231921,584.25,583.16,1.28338366]
[1741134557121,0.31492006,584.24,583.16,1.28338366]
[1741134557321,0.34233093,584.23,583.16,1.28338366]
[1741134557527,0.31492006,584.22,583.16,1.28338366]
[1741134557927,0.31492006,584.22,583.18,1.28338366]
[1741134558122,0.34234265,584.21,583.18,1.28338366]
[1741134558326,0.31492006,584.2,583.18,1.28338366]
[1741134558827,0.65730624,584.19,583.18,1.28338366]
[1741134559033,0.6573121,584.18,583.18,1.28338366]
[1741134559222,0.31495187,584.17,583.18,1.28338366]
[1741134559423,0.34237195,584.16,583.18,1.28338366]
[1741134559629,0.31495187,584.15,583.15,1.28338366]
[1741134560321,0.34238367,584.14,583.15,1.28338366]
[1741134560528,0.31493859,584.13,583.15,1.28338366]
[1741134560927,0.34239539,584.12,583.15,1.28338366]
[1741134561123,0.31493859,584.11,583.15,1.28338366]
[1741134561724,0.31493859,584.11,583.18,1.28338366]
[1741134561725,0.34240712,584.1,583.18,1.28338366]
[1741134561928,0.31493859,584.09,583.18,1.28338366]
[1741134562127,0.34241884,584.08,583.18,1.28338366]
[1741134562337,0.31493859,584.07,583.18,1.28338366]
[1741134562532,0.34243057,584.06,583.19,1.78924141]
[1741134562726,0.31493859,584.05,583.19,1.78924141]
[1741134565033,0.31493859,584.05,583.16,1.28338366]
[1741134565238,0.31493859,584.05,583.19,1.78912643]
[1741134565743,0.34243057,584.06,583.19,1.78912643]
[1741134566042,0.34243057,584.06,583.26,1.28338366]
[1741134569035,0.34243057,584.06,583.22,1.78888884]
[1741134570934,0.34243057,584.06,583.17,1.28338366]
[1741134571440,0.34243057,584.06,583.18,1.78895781]
[1741134572645,0.34243057,584.06,583.37,1.28338366]
[1741134574938,0.34243057,584.06,583.18,1.78895781]
[1741134574939,0.34243057,584.06,583.39,1.28338366]
[1741134576748,0.34243057,584.06,583.18,1.78895781]
[1741134576749,0.34243057,584.06,583.37,1.28338366]
[1741134578660,0.34243057,584.06,583.36,1.28338366]
[1741134581561,0.34243057,584.06,583.39,1.28338366]
[1741134583562,1.161,584.05,583.38,1.28338366]
[1741134585564,1.161,584.05,583.21,1.28338366]
[1741134588265,1.161,584.05,583.19,1.78885819]
[1741134589062,1.161,584.05,583.15,1.28338366]
[1741134589261,1.161,584.05,583.19,1.78888884]
[1741134590665,1.161,584.05,583.28,1.28338366]
[1741134590864,1.137,584.04,583.28,1.28338366]
[1741134592376,1.137,584.04,583.29,1.28338366]
[1741134594769,1.137,584.04,583.39,1.28338366]
[1741134597070,1.137,584.04,583.31,1.28338366]
[1741134599370,1.137,584.04,583.19,1.28338366]
[1741134601570,1.137,584.04,582.47,2.61731029]
[1741134601571,1.137,584.04,583.51,1.28338366]
[1741134604170,1.137,584.04,583.24,1.28338366]
[1741134608282,1.137,584.04,583.49,1.28338366]
[1741134610381,1.137,584.04,582.98,2.61731029]
[1741134610382,1.137,584.04,583.42,1.28338366]
[1741134614473,0.20388672,584.04,583.42,1.28338366]
[1741134615580,0.20388672,584.04,583.43,0.34280033]
[1741134615981,1.247,584.03,583.43,0.34280033]
[1741134619082,0.27213955,584.03,583.43,0.34280033]
[1741134638696,0.27213955,584.03,583.45,1.28338366]
[1741134639595,0.27213955,584.03,583.46,0.34278271]
[1741134639990,0.94460009,585.23,583.46,0.34278271]
[1741134640195,0.34175765,585.21,583.46,0.34278271]
[1741134640396,0.31460905,585.2,583.46,0.34278271]
[1741134640596,0.31460905,585.19,583.46,0.34278271]
[1741134640791,0.34178102,585.17,583.46,0.34278271]
[1741134640991,0.31460905,585.16,583.46,0.34278271]
[1741134641295,0.34179854,585.14,583.46,0.34278271]
[1741134641495,0.31460905,585.13,583.46,0.34278271]
[1741134641696,0.34181606,585.11,583.46,0.34278271]
[1741134641895,0.31460905,585.1,583.46,0.34278271]
[1741134642297,0.34183359,585.08,583.46,0.34278271]
[1741134642495,0.31460905,585.07,583.46,0.34278271]
[1741134642695,0.34185112,585.05,583.46,0.34278271]
[1741134642890,0.31460905,585.04,583.46,0.34278271]
[1741134643095,0.34186865,585.02,583.46,0.34278271]
[1741134643292,0.31460905,585.01,583.46,0.34278271]
[1741134643494,0.34188618,584.99,583.46,0.34278271]
[1741134643695,0.31460905,584.98,583.46,0.34278271]
[1741134644394,0.34189787,584.97,583.46,0.34278271]
[1741134645394,0.31454708,584.96,583.46,0.34278271]
[1741134645595,0.34191541,584.94,583.46,0.34278271]
[1741134645794,0.31454708,584.93,583.46,0.34278271]
[1741134645997,0.3419271,584.92,583.46,0.34278271]
[1741134650804,0.3419271,584.92,583.76,1.28338366]
[1741134651706,0.31454013,584.91,583.76,1.28338366]
[1741134651906,0.34193879,584.9,583.76,1.28338366]
[1741134652106,0.31454013,584.89,583.76,1.28338366]
[1741134652306,0.34195048,584.88,583.76,1.28338366]
[1741134652501,0.31454013,584.87,583.76,1.28338366]
[1741134652707,0.34196217,584.86,583.52,1.28338366]
[1741134652907,0.31454013,584.85,583.53,0.34274158]
[1741134653102,0.34197387,584.84,583.53,0.34274158]
[1741134653307,0.31454013,584.83,583.53,0.34274158]
[1741134653506,0.34198556,584.82,583.53,0.34274158]
[1741134653808,0.31454013,584.81,583.53,0.34274158]
[1741134654007,0.34199726,584.8,583.53,0.34274158]
[1741134654209,0.31454013,584.79,583.53,0.34274158]
[1741134654608,0.65654324,584.79,583.53,1.62612524]
[1741134654803,0.31454013,584.78,583.53,1.62612524]
[1741134655002,0.34200311,584.79,583.53,1.62612524]
[1741134655205,0.31454821,584.78,583.53,1.62612524]
[1741134655407,0.34200311,584.79,583.53,1.62612524]
[1741134655601,0.31454821,584.78,583.53,1.62612524]
[1741134656911,0.31454821,584.78,583.55,1.28338366]
[1741134657312,0.34200311,584.79,583.55,1.28338366]
[1741134657508,0.31455989,584.78,583.55,1.28338366]
[1741134657705,0.65656885,584.78,583.56,0.34272397]
[1741134657909,0.31455989,584.77,583.56,0.34272397]
[1741134658611,0.34200896,584.78,583.56,0.34272397]
[1741134658906,0.3145628,584.77,583.56,0.34272397]
[1741134659305,0.34202065,584.76,583.56,0.34272397]
[1741134659504,0.3145628,584.75,583.83,1.28338366]
[1741134660011,0.34203235,584.74,583.83,1.28338366]
[1741134660208,0.3145628,584.73,583.83,1.28338366]
[1741134660511,0.34204405,584.72,583.83,1.28338366]
[1741134660705,0.3145628,584.71,583.83,1.28338366]
[1741134660903,0.34205575,584.7,583.83,1.28338366]
[1741134661108,0.3145628,584.69,583.83,1.28338366]
[1741134661307,0.34206745,584.68,583.83,1.28338366]
[1741134661509,0.3145628,584.67,583.83,1.28338366]
[1741134662218,0.3145628,584.67,583.76,1.28338366]
[1741134662219,0.3145628,584.67,583.79,1.28338366]
[1741134662514,0.6566361,584.67,583.79,1.28338366]
[1741134662715,0.3145628,584.66,583.79,1.28338366]
[1741134663615,0.342085,584.65,583.79,1.28338366]
[1741134663811,0.3145628,584.64,583.79,1.28338366]
[1741134664009,0.34209671,584.63,583.79,1.28338366]
[1741134664209,0.3145628,584.62,583.79,1.28338366]
[1741134664813,0.3145628,584.62,583.71,1.28338366]
[1741134665018,0.3145628,584.62,583.63,1.28338366]
[1741134666220,0.65666536,584.62,583.63,1.28338366]
[1741134666520,0.65666536,584.62,583.6,1.28338366]
[1741134666521,0.3145628,584.61,583.6,1.28338366]
[1741134667919,0.34210256,584.62,583.6,1.28338366]
[1741134669022,0.34210256,584.62,583.61,1.28338366]
[1741134672026,0.34210256,584.62,583.82,1.28338366]
[1741134672825,1.293,584.61,583.82,1.28338366]
[1741134673627,0.31465167,584.6,583.82,1.28338366]
[1741134673827,0.31465167,584.6,583.63,1.28338366]
[1741134675921,0.34212011,584.59,583.63,1.28338366]
[1741134676124,0.31465167,584.58,583.63,1.28338366]
[1741134676323,0.34213182,584.57,583.63,1.28338366]
[1741134676528,0.31465167,584.56,583.62,1.28338366]
[1741134676729,0.65678934,584.56,583.62,1.28338366]
[1741134677124,0.31465167,584.55,583.62,1.28338366]
[1741134677933,0.34213767,584.56,583.62,1.28338366]
[1741134678330,0.34213767,584.56,583.56,0.34272397]
[1741134678528,0.31465362,584.55,583.56,0.34272397]
[1741134678729,0.34213767,584.56,583.56,0.34272397]
[1741134682234,0.34213767,584.56,583.69,1.28338366]
[1741134683938,0.31464281,584.55,583.69,1.28338366]
[1741134684435,0.31464281,584.55,583.67,1.28338366]
[1741134685635,0.34214938,584.54,583.67,1.28338366]
[1741134685939,0.31464281,584.53,583.67,1.28338366]
[1741134686140,0.34216108,584.52,583.67,1.28338366]
[1741134686840,0.314714,584.51,583.67,1.28338366]
[1741134688151,0.314714,584.51,583.4,1.28338366]
[1741134688344,1.175,584.5,583.4,1.28338366]
[1741134688539,0.314714,584.49,583.4,1.28338366]
[1741134689944,0.3421845,584.48,583.4,1.28338366]
[1741134690141,0.314714,584.47,583.4,1.28338366]
[1741134690444,0.314714,584.47,583.24,1.28338366]
[1741134691444,0.314714,584.47,583.25,0.34290612]
[1741134692646,0.314714,584.47,583.47,1.28338366]
[1741134694341,0.314714,584.47,583.39,1.28338366]
[1741134695048,0.3421845,584.48,583.39,1.28338366]
[1741134695352,0.3147254,584.47,583.39,1.28338366]
[1741134695545,0.34219621,584.46,583.39,1.28338366]
[1741134695747,0.3147254,584.45,583.39,1.28338366]
[1741134696050,0.34220792,584.44,583.39,1.28338366]
[1741134696249,0.3147254,584.43,583.4,1.28338366]
[1741134696649,0.34220792,584.44,583.4,1.28338366]
[1741134696850,0.31474255,584.43,583.4,1.28338366]
[1741134697353,0.34221963,584.42,583.4,1.28338366]
[1741134697551,0.31474255,584.41,583.4,1.28338366]
[1741134697751,0.34223134,584.4,583.4,1.28338366]
[1741134698046,0.31474255,584.39,583.4,1.28338366]
[1741134698250,0.34224306,584.38,583.4,1.28338366]
[1741134698642,0.3147557,584.37,583.4,1.28338366]
[1741134699141,0.34225477,584.36,583.4,1.28338366]
[1741134699350,0.34225477,584.36,583.25,0.34290612]
[1741134706054,0.31477679,584.35,583.25,0.34290612]
[1741134706253,0.34226648,584.34,583.25,0.34290612]
[1741134706553,0.31477679,584.33,583.25,0.34290612]
[1741134707950,0.3422782,584.32,583.25,0.34290612]
[1741134708257,0.31477679,584.31,583.25,0.34290612]
[1741134708457,0.31484437,584.3,583.25,0.34290612]
[1741134708657,0.31484437,584.29,583.25,0.34290612]
[1741134708856,0.31484437,584.31,583.25,0.34290612]
[1741134709056,0.65713428,584.3,583.25,0.34290612]
[1741134709359,0.31484437,584.29,583.25,0.34290612]
[1741134709957,0.34228991,584.3,583.25,0.34290612]
[1741134710153,0.31484296,584.29,583.25,0.34290612]
[1741134711562,0.34228991,584.3,583.25,0.34290612]
[1741134711759,0.31490002,584.29,583.25,0.34290612]
[1741134711959,0.31490002,584.29,583.19,1.28338366]
[1741134712460,0.31490002,584.28,583.19,1.28338366]
[1741134712655,0.31490002,584.27,583.19,1.28338366]
[1741134712856,0.31490002,584.26,583.19,1.28338366]
[1741134713061,0.31490002,584.25,583.19,1.28338366]
[1741134713260,0.34232507,584.24,583.19,1.28338366]
[1741134713459,0.31492434,584.23,582.99,1.28338366]
[1741134714160,0.34233679,584.22,582.99,1.28338366]
[1741134714466,0.31492434,584.21,582.99,1.28338366]
[1741134714661,0.34234851,584.2,582.99,1.28338366]
[1741134714866,0.31492434,584.19,582.99,1.28338366]
[1741134715059,0.34236023,584.18,582.99,1.28338366]
[1741134715263,0.31492434,584.17,582.99,1.28338366]
[1741134715560,0.34237195,584.16,582.99,1.28338366]
[1741134715762,0.31492434,584.15,582.99,1.28338366]
[1741134715967,0.31492434,584.15,582.92,1.28338366]
[1741134716165,0.34238367,584.14,582.92,1.28338366]
[1741134716364,0.31492434,584.13,582.92,1.28338366]
[1741134716661,0.34239539,584.12,582.92,1.28338366]
[1741134716867,0.31491405,584.11,582.92,1.28338366]
[1741134717166,0.31491405,584.11,582.93,0.34309436]
[1741134717567,0.31490854,584.1,582.93,0.34309436]
[1741134717762,0.31490854,584.11,582.93,0.34309436]
[1741134717961,0.31490854,584.1,582.93,0.34309436]
[1741134718166,0.31490854,584.11,582.93,0.34309436]
[1741134718467,0.31490854,584.1,582.93,0.34309436]
[1741134718663,0.31490854,584.09,582.93,0.34309436]
[1741134718867,0.34239539,584.12,582.93,0.34309436]
[1741134718868,0.31490854,584.11,582.93,0.34309436]
[1741134719067,0.31490854,584.1,582.93,0.34309436]
[1741134719268,0.31490854,584.11,582.93,0.34309436]
[1741134719568,0.31490854,584.1,582.93,0.34309436]
[1741134719766,0.31490854,584.09,582.93,0.34309436]
[1741134719967,0.31490854,584.11,582.93,0.34309436]
[1741134720268,0.31490854,584.1,582.93,0.34309436]
[1741134720462,0.31490854,584.11,582.93,0.34309436]
[1741134720665,0.31490854,584.1,582.93,0.34309436]
[1741134720867,0.31490854,584.09,582.93,0.34309436]
[1741134721169,0.31490854,584.08,582.93,0.34309436]
[1741134721368,0.34239539,584.12,582.93,0.34309436]
[1741134721569,0.31492011,584.11,583.09,1.28338366]
[1741134721765,0.34240712,584.1,583.09,1.28338366]
[1741134721963,0.31492011,584.09,583.09,1.28338366]
[1741134722168,0.34241884,584.08,583.09,1.28338366]
[1741134722369,0.31492011,584.07,583.09,1.28338366]
[1741134722564,0.34243057,584.06,583.09,1.28338366]
[1741134722769,0.31492011,584.05,583.09,1.28338366]
[1741134723767,0.34243057,584.06,583.09,1.28338366]
[1741134724371,0.31494665,584.05,583.09,1.28338366]
[1741134725076,0.34243057,584.06,583.09,1.28338366]
[1741134725278,0.34243057,584.06,582.93,1.62647802]
[1741134725675,0.31489308,584.05,582.93,1.62647802]
[1741134726170,0.34243057,584.06,582.93,1.62647802]
[1741134727781,0.34243057,584.06,582.93,0.34309436]
[1741134728280,0.3149196,584.05,582.93,0.34309436]
[1741134728475,0.34244229,584.04,582.93,0.34309436]
[1741134728679,0.3149196,584.03,582.93,0.34309436]
[1741134729280,0.34245402,584.02,582.93,0.34309436]
[1741134729473,0.3149196,584.01,582.93,0.34309436]
[1741134729674,0.34245402,584.02,582.93,0.34309436]
[1741134729980,0.31498469,584.01,582.93,0.34309436]
[1741134730972,0.34246575,584.0,582.93,0.34309436]
[1741134731175,0.31498469,583.99,582.93,0.34309436]
[1741134731375,0.65747077,583.98,582.93,0.34309436]
[1741134731774,0.65747663,583.97,582.93,0.34309436]
[1741134731980,0.6574825,583.96,582.93,0.34309436]
[1741134732183,0.31499329,583.95,582.93,0.34309436]
[1741134733077,0.34248921,583.96,582.93,0.34309436]
[1741134733078,0.34250094,583.94,582.93,0.34309436]
[1741134733278,0.3149944,583.93,582.93,0.34309436]
[1741134735083,0.34251267,583.92,582.93,0.34309436]
[1741134735288,0.3149944,583.91,582.93,0.34309436]
[1741134735590,0.3425244,583.9,582.93,0.34309436]
[1741134735794,0.3149944,583.89,582.93,0.34309436]
[1741134735989,0.34253613,583.88,582.93,0.34309436]
[1741134736184,0.3149944,583.87,582.93,0.34309436]
[1741134736494,0.31504215,583.86,582.93,0.34309436]
[1741134736883,0.65759588,583.85,582.7,1.28338366]
[1741134737080,0.65760175,583.84,582.7,1.28338366]
[1741134737283,1.201,584.07,582.7,1.28338366]
[1741134737284,0.65760762,583.83,582.7,1.28338366]
[1741134737486,0.31504215,583.82,582.7,1.28338366]
[1741134737884,0.3425772,583.81,582.7,1.28338366]
[1741134738083,0.31504215,583.8,582.7,1.28338366]
[1741134738592,0.34258894,583.79,582.7,1.28338366]
[1741134738889,0.31504215,583.78,582.7,1.28338366]
[1741134739084,0.34260068,583.77,582.5,1.28338366]
[1741134739294,0.31504215,583.76,582.5,1.28338366]
[1741134739588,0.34261241,583.75,582.51,0.34334174]
[1741134739796,0.31504215,583.74,582.51,0.34334174]
[1741134740089,0.34262415,583.73,582.51,0.34334174]
[1741134740284,0.31504215,583.72,582.51,0.34334174]
[1741134740490,0.34263589,583.71,582.51,0.34334174]
[1741134740691,0.31504215,583.7,582.51,0.34334174]
[1741134740885,0.34264763,583.69,582.51,0.34334174]
[1741134741083,0.31504215,583.68,582.51,0.34334174]
[1741134741383,0.34264763,583.69,582.51,0.34334174]
[1741134741590,0.31513888,583.68,582.51,0.34334174]
[1741134742089,0.34264763,583.69,582.51,0.34334174]
[1741134746186,1.201,584.07,582.51,0.34334174]
[1741134746388,0.65741878,584.06,582.51,0.34334174]
[1741134746585,0.31499147,584.05,582.51,0.34334174]
[1741134747988,0.31499147,584.05,582.87,1.28338366]
[1741134748595,0.31499147,584.05,582.88,0.34312379]
[1741134749192,0.34243057,584.06,582.88,0.34312379]
[1741134751896,0.84,584.05,582.88,0.34312379]
[1741134754600,0.84,584.05,583.01,1.28338366]
[1741134754802,0.84,584.05,583.02,0.3430414]
[1741134755899,0.31489652,584.04,583.02,0.3430414]
[1741134756299,0.84,584.05,583.02,0.3430414]
[1741134756704,0.31488841,584.04,583.02,0.3430414]
[1741134757001,0.84,584.05,583.02,0.3430414]
[1741134757202,1.331,584.03,583.02,0.3430414]
[1741134757799,0.31490384,584.02,583.02,0.3430414]
[1741134758205,1.331,584.03,583.02,0.3430414]
[1741134765510,1.331,584.03,583.05,1.28338366]
[1741134767907,1.331,584.03,583.02,0.3430414]
[1741134777116,0.31494611,584.02,583.02,0.3430414]
[1741134778817,1.331,584.03,583.02,0.3430414]
[1741134779019,0.31495515,584.02,583.02,0.3430414]
[1741134783425,1.331,584.03,583.02,0.3430414]
[1741134783633,0.3149862,584.02,583.02,0.3430414]
[1741134783931,1.145,584.01,583.02,0.3430414]
[1741134784132,0.3149862,584.0,583.02,0.3430414]
[1741134789635,0.34247161,583.99,583.02,0.3430414]
[1741134789934,0.3149862,583.98,583.02,0.3430414]
[1741134790135,0.34247161,583.99,583.02,0.3430414]
[1741134790335,0.31500615,583.98,583.02,0.3430414]
[1741134790931,0.65748363,583.98,583.02,0.3430414]
[1741134791132,0.65748949,583.97,582.93,1.28338366]
[1741134791333,0.65749536,583.96,582.93,1.28338366]
[1741134791530,0.65749536,583.96,582.67,1.53833747]
[1741134791531,0.31500615,583.95,582.78,1.28338366]
[1741134791932,0.34250094,583.94,582.78,1.28338366]
[1741134792129,0.31500615,583.93,582.78,1.28338366]
[1741134792734,0.34251267,583.92,582.78,1.28338366]
[1741134792934,0.31500615,583.91,582.78,1.28338366]
[1741134793737,0.3425244,583.9,582.68,1.28338366]
[1741134794037,0.31500615,583.89,582.68,1.28338366]
[1741134794237,0.34253613,583.88,582.68,1.28338366]
[1741134794432,0.31500615,583.87,582.68,1.28338366]
[1741134794637,0.34254787,583.86,582.69,1.79026159]
[1741134794937,0.31500615,583.85,582.69,1.79026159]
[1741134795138,0.3425596,583.84,582.69,1.79026159]
[1741134795336,0.31500615,583.83,582.69,1.79026159]
[1741134795532,0.34257134,583.82,582.69,1.79026159]
[1741134795735,0.31500615,583.81,582.69,1.79026159]
[1741134795937,0.34258307,583.8,582.69,1.79026159]
[1741134796133,0.31500615,583.79,582.68,1.28338366]
[1741134796434,0.34259481,583.78,582.69,1.79033067]
[1741134796638,0.31500615,583.77,582.69,1.79033067]
[1741134797035,0.34260655,583.76,582.69,1.79033067]
[1741134797238,0.31500615,583.75,582.69,1.79033067]
[1741134797436,0.34261241,583.75,582.69,1.79033067]
[1741134797636,0.31513952,583.74,582.69,1.79033067]
[1741134799142,0.31513952,583.74,582.54,1.28338366]
[1741134799343,0.31513952,583.74,582.54,1.62670772]
[1741134799644,0.31513952,583.74,582.55,1.79047652]
[1741134800243,0.31513952,583.74,582.56,0.34331227]
[1741134800542,0.3151061,583.73,582.56,0.34331227]
[1741134800737,0.3151061,583.72,582.56,0.34331227]
[1741134800940,0.34261241,583.75,582.56,0.34331227]
[1741134801142,0.3151074,583.74,582.56,0.34331227]
[1741134801543,0.34261241,583.75,582.56,0.34331227]
[1741134801744,0.31507988,583.74,582.56,0.34331227]
[1741134802341,0.34261241,583.75,582.56,0.34331227]
[1741134802541,0.31507344,583.74,582.56,0.34331227]
[1741134802938,0.34261241,583.75,582.56,0.34331227]
[1741134804345,0.31503785,583.74,582.56,0.34331227]
[1741134805147,0.31503785,583.74,582.82,1.28338366]
[1741134807449,0.31503785,583.74,582.79,1.28338366]
[1741134809348,0.31503785,583.74,582.8,1.28338366]
[1741134812050,0.31503785,583.74,582.79,1.28338366]
[1741134812246,0.34261241,583.75,582.79,1.28338366]
[1741134812452,0.31515947,583.74,582.79,1.28338366]
[1741134812646,0.34262415,583.73,582.79,1.28338366]
[1741134812852,0.31515947,583.72,582.79,1.28338366]
[1741134813152,0.34263589,583.71,582.79,1.28338366]
[1741134813352,0.31515947,583.7,582.79,1.28338366]
[1741134813754,0.34264763,583.69,582.79,1.28338366]
[1741134813957,0.31515947,583.68,582.79,1.28338366]
[1741134814149,0.34265937,583.67,582.63,1.28338366]
[1741134814355,0.31525376,583.66,582.63,1.28338366]
[1741134814548,0.34267112,583.65,582.63,1.28338366]
[1741134814752,0.31525376,583.64,582.63,1.28338366]
[1741134814950,0.34268286,583.63,582.63,1.28338366]
[1741134815150,0.31525376,583.62,582.63,1.28338366]
[1741134815348,0.3426946,583.61,582.63,1.28338366]
[1741134815548,0.31525376,583.6,582.63,1.28338366]
[1741134815749,0.34270635,583.59,582.63,1.28338366]
[1741134816051,0.31525376,583.58,582.63,1.28338366]
[1741134817453,0.31525376,583.58,582.56,1.62669593]
[1741134817454,0.31525376,583.58,582.56,0.34331227]
[1741134826258,0.34270635,583.59,582.56,0.34331227]